bitfinex/quotes_SOLUSD_20250226
["timestamp","ask_amount","ask_price","bid_price","bid_amount"]
[1740598567064,75.44756785,131.62,131.52,221.56112161]
[1740598567265,0.7598,131.61,131.52,221.56112161]
[1740598569099,75.30540628,131.62,131.53,8.17114628]
[1740598569304,78.87240628,131.67,131.57,0.56864628]
[1740598569593,3.567,131.67,131.57,212.59087098]
[1740598569917,0.14216157,131.65,131.57,11.5]
[1740598570078,77.96370628,131.66,131.57,11.5]
[1740598570283,76.06490628,131.66,131.57,212.0222247]
[1740598571209,3.567,131.67,131.6,20.0]
[1740598571380,3.567,131.67,131.6,63.7222247]
[1740598571586,4.3265,131.67,131.6,63.7222247]
[1740598571772,88.80365497,131.69,131.61,0.56864628]
[1740598571979,88.80365497,131.69,131.61,201.09087098]
[1740598572175,88.80365497,131.69,131.63,0.56864628]
[1740598572375,88.80365497,131.69,131.63,211.9822247]
[1740598572871,0.063,131.65,131.63,211.9822247]
[1740598573302,0.063,131.65,131.63,75.1822247]
[1740598573668,0.063,131.65,131.62,128.04]
[1740598574114,0.063,131.65,131.62,122.316]
[1740598575392,0.063,131.65,131.62,322.8382247]
[1740598576788,0.063,131.65,131.62,330.4358247]
[1740598577291,0.063,131.65,131.62,120.37635371]
[1740598577673,76.44756785,131.67,131.62,116.65635371]
[1740598578171,88.42400628,131.66,131.56,200.5522247]
[1740598578368,0.03136985,131.64,131.56,63.7522247]
[1740598578977,0.03136985,131.64,131.57,0.56864628]
[1740598579298,0.79096985,131.64,131.56,63.7522247]
[1740598579480,2.69006985,131.64,131.56,63.7522247]
[1740598579870,0.79096985,131.64,131.56,71.3530247]
[1740598580073,77.99547613,131.64,131.56,63.7522247]
[1740598580504,0.79096985,131.64,131.59,20.0]
[1740598580683,0.03136985,131.64,131.59,200.5222247]
[1740598580885,0.03136985,131.64,131.6,11.3]
[1740598581085,0.03136985,131.64,131.56,200.5522247]
[1740598581295,75.33677613,131.64,131.56,63.7522247]
[1740598581580,75.33677613,131.64,131.57,0.56864628]
[1740598581774,0.03136985,131.64,131.58,22.88]
[1740598582171,0.03136985,131.64,131.6,22.88]
[1740598582389,0.03136985,131.64,131.61,34.74864628]
[1740598583011,0.03136985,131.64,131.63,43.44864628]
[1740598583184,0.03136985,131.64,131.63,251.56787098]
[1740598583383,10.70091142,131.73,131.64,0.56864628]
[1740598583702,88.77228512,131.72,131.66,0.56864628]
[1740598583897,88.77228512,131.72,131.67,34.16]
[1740598584101,88.77228512,131.72,131.67,234.6822247]
[1740598584292,88.77228512,131.72,131.71,0.56864628]
[1740598584497,50.08348512,131.72,131.71,351.99087098]
[1740598584704,7.63338512,131.72,131.71,351.99087098]
[1740598584888,0.063,131.79,131.74,20.0]
[1740598585096,0.063,131.79,131.75,34.72864628]
[1740598585400,0.063,131.79,131.76,30.4695]
[1740598585610,0.063,131.79,131.77,0.56864628]
[1740598585817,0.063,131.79,131.78,0.56864628]
[1740598586115,6.22746806,131.89,131.81,0.56864628]
[1740598586417,12.8646,131.9,131.81,0.56864628]
[1740598586418,12.8646,131.9,131.82,162.14]
[1740598586592,3.7644,131.92,131.83,0.56864628]
[1740598586796,3.7644,131.92,131.85,0.56864628]
[1740598587006,10.54523816,131.92,131.83,200.94870941]
[1740598587212,0.7581,131.9,131.83,63.7222247]
[1740598587383,10.53302145,131.92,131.84,23.44864628]
[1740598587584,3.7644,131.92,131.87,42.88]
[1740598587784,13.0114,131.95,131.87,220.5222247]
[1740598588085,3.5411,131.99,131.89,0.56864628]
[1740598588303,3.5411,131.99,131.89,201.09087098]
[1740598588484,4.2987,131.99,131.89,201.09087098]
[1740598588689,9.59567695,131.99,131.89,201.09087098]
[1740598588939,4.2987,131.99,131.89,201.09087098]
[1740598589483,10.40270456,131.99,131.9,0.42648471]
[1740598589795,4.2987,131.99,131.92,20.0]
[1740598589996,4.2987,131.99,131.93,127.9]
[1740598590396,2.0,131.89,131.78,200.5222247]
[1740598590588,2.0,131.87,131.78,63.7222247]
[1740598590792,1.0,131.86,131.78,63.7222247]
[1740598591001,1.0,131.86,131.75,11.58]
[1740598591307,1.0,131.85,131.75,75.3022247]
[1740598591506,76.30540628,131.87,131.75,75.3022247]
[1740598591507,6.3087,131.86,131.75,75.3022247]
[1740598591711,1.0,131.81,131.72,63.7222247]
[1740598591887,1.0,131.83,131.69,136.8]
[1740598591888,1.0,131.79,131.71,11.58]
[1740598592088,1.0,131.8,131.71,11.58]
[1740598592291,1.0,131.79,131.66,200.5222247]
[1740598592492,4.2632,131.66,131.6,0.03]
[1740598592697,1.0,131.64,131.6,0.03]
[1740598593092,6.2632,131.66,131.6,0.03]
[1740598593299,37.77489121,131.65,131.6,0.03]
[1740598593710,39.29399121,131.65,131.6,0.03]
[1740598593897,40.29399121,131.65,131.6,0.03]
[1740598594099,1.0,131.63,131.6,0.03]
[1740598594396,13.40436157,131.62,131.6,0.03]
[1740598594630,5.0869,131.53,131.48,0.03]
[1740598594791,5.37122314,131.53,131.52,9.691e-05]
[1740598594991,5.22906157,131.53,131.52,9.691e-05]
[1740598595194,1.0,131.41,131.38,1.9712629]
[1740598595427,12.8982,131.46,131.38,1.9712629]
[1740598595428,1.0,131.4,131.38,1.9712629]
[1740598595614,1.5219,131.42,131.38,1.9712629]
[1740598595999,38.34966797,131.45,131.38,136.8]
[1740598596208,15.41547586,131.41,131.38,136.8]
[1740598596717,15.41547586,131.41,131.38,108.21489554]
[1740598596923,53.86092755,131.41,131.33,20.0]
[1740598597144,38.55236173,131.42,131.33,72.38910524]
[1740598597421,38.55236173,131.42,131.34,0.56864628]
[1740598597806,38.55236173,131.42,131.36,20.0]
[1740598598319,38.55236173,131.42,131.36,19.5]
[1740598598717,38.55236173,131.42,131.35,0.17216157]
[1740598598900,40.07416173,131.42,131.35,0.03]
[1740598599218,39.44545169,131.41,131.35,0.03]
[1740598599416,38.44545169,131.41,131.35,0.03]
[1740598599918,39.96745169,131.41,131.35,0.03]
[1740598600097,38.55236173,131.42,131.35,0.03]
[1740598600296,40.07416173,131.42,131.35,0.03]
[1740598601314,41.07416173,131.42,131.35,0.03]
[1740598601496,39.44545169,131.41,131.35,0.03]
[1740598601902,1.522,131.4,131.35,0.03]
[1740598602399,39.96735169,131.41,131.35,0.03]
[1740598602923,1.0,131.39,131.35,0.03]
[1740598603433,39.96735169,131.41,131.35,0.03]
[1740598604824,39.34966797,131.45,131.36,20.0]
[1740598605119,38.34966797,131.45,131.36,20.0]
[1740598605816,38.34966797,131.45,131.39,20.0]
[1740598606021,1.0,131.47,131.4,20.0]
[1740598606022,38.22750917,131.47,131.4,20.0]
[1740598606228,1.5211,131.48,131.4,220.5222247]
[1740598606401,2.5211,131.48,131.4,220.5222247]
[1740598606603,1.0,131.45,131.4,20.0]
[1740598606823,5.3239,131.48,131.35,19.6432]
[1740598606824,1.0,131.43,131.35,12.03]
[1740598607142,1.0,131.46,131.36,0.56864628]
[1740598607423,1.0,131.47,131.39,20.0]
[1740598607800,1.5211,131.48,131.4,0.56864628]
[1740598608124,3.802,131.51,131.42,0.56864628]
[1740598608125,1.521,131.5,131.42,0.56864628]
[1740598608333,1.521,131.5,131.42,213.05087098]
[1740598608911,1.521,131.5,131.42,212.4822247]
[1740598609117,1.0,131.48,131.42,11.96]
[1740598609317,1.0,131.47,131.42,11.96]
[1740598610023,2.5212,131.47,131.42,11.96]
[1740598610327,0.063,131.46,131.42,19.5691]
[1740598610510,0.063,131.46,131.45,20.0]
[1740598610835,0.063,131.46,131.45,221.09087098]
[1740598611127,0.063,131.46,131.42,75.6822247]
[1740598611323,0.063,131.46,131.42,11.96]
[1740598611540,0.063,131.46,131.42,19.569]
[1740598612742,0.063,131.46,131.42,11.96]
[1740598612909,1.063,131.46,131.41,128.18]
[1740598613215,1.0,131.44,131.41,128.18]
[1740598613819,1.0,131.42,131.36,0.03]
[1740598614015,1.5219,131.41,131.36,0.03]
[1740598614327,2.5219,131.41,131.36,0.03]
[1740598615230,1.0,131.4,131.36,0.03]
[1740598615624,1.0,131.37,131.36,0.03]
[1740598616015,1.0,131.34,131.3,100.0]
[1740598616203,1.0,131.38,131.3,300.5222247]
[1740598616410,1.0,131.37,131.3,163.7222247]
[1740598616616,1.0,131.36,131.3,163.7222247]
[1740598616927,1.0,131.35,131.3,100.0]
[1740598617122,1.0,131.38,131.3,100.0]
[1740598617123,1.0,131.34,131.3,100.0]
[1740598617430,2.5228,131.34,131.3,100.0]
[1740598617934,1.0,131.33,131.3,100.0]
[1740598618540,1.0,131.38,131.3,100.0]
[1740598618837,1.0,131.35,131.3,300.5222247]
[1740598619005,1.0,131.33,131.3,100.0]
[1740598619207,1.0,131.34,131.3,100.0]
[1740598619412,2.5229,131.33,131.3,94.989]
[1740598619607,1.0,131.31,131.3,94.989]
[1740598619832,1.0,131.31,131.3,91.19400044]
[1740598620338,1.0,131.23,131.22,0.03]
[1740598621329,3.524,131.23,131.22,0.03]
[1740598621505,2.524,131.23,131.22,0.03]
[1740598621713,2.524,131.23,131.17,21.9712629]
[1740598621714,2.524,131.23,131.17,21.5012629]
[1740598621912,1.0,131.22,131.17,1.5012629]
[1740598622142,2.524,131.23,131.17,1.5012629]
[1740598622319,1.0,131.22,131.17,1.5012629]
[1740598622728,40.93877914,131.32,131.17,1.5012629]
[1740598622729,4.8088,131.28,131.18,11.72]
[1740598623028,1.0,131.23,131.18,11.72]
[1740598623238,1.0,131.28,131.19,0.56864628]
[1740598623528,2.5233,131.3,131.22,20.0]
[1740598623728,1.0,131.29,131.22,83.7222247]
[1740598623910,1.0,131.31,131.22,348.8422247]
[1740598624252,1.0,131.27,131.22,128.32]
[1740598624534,2.0,131.29,131.22,128.32]
[1740598624741,2.0,131.31,131.22,128.32]
[1740598624951,2.0,131.3,131.22,128.32]
[1740598625122,1.0,131.28,131.22,192.0422247]
[1740598625319,2.5234,131.28,131.22,128.32]
[1740598625513,1.0,131.25,131.22,128.32]
[1740598625715,1.0,131.26,131.19,71.3446247]
[1740598625970,1.5234,131.28,131.19,71.3446247]
[1740598626235,1.0,131.3,131.2,0.56864628]
[1740598626424,1.0,131.26,131.2,200.5222247]
[1740598626621,1.0,131.28,131.2,200.5222247]
[1740598626823,1.0,131.27,131.2,200.5222247]
[1740598627025,1.0,131.24,131.2,200.5222247]
[1740598627332,1.0,131.24,131.18,11.74]
[1740598627333,1.0,131.21,131.17,1.5012629]
[1740598627648,1.0,131.2,131.17,1.5012629]
[1740598628329,1.0,131.22,131.17,1.5012629]
[1740598628834,1.0,131.21,131.17,1.5012629]
[1740598629257,2.5238,131.25,131.17,202.0234876]
[1740598629429,1.0,131.25,131.2,20.0]
[1740598629632,1.0,131.24,131.2,20.0]
[1740598630162,1.0,131.29,131.21,0.56864628]
[1740598630361,1.0,131.32,131.24,20.0]
[1740598630528,1.0,131.29,131.24,11.8]
[1740598630738,1.0,131.27,131.24,11.8]
[1740598630935,1.0,131.29,131.24,11.8]
[1740598631135,1.0,131.3,131.24,11.8]
[1740598631352,2.523,131.32,131.24,19.4193]
[1740598631553,1.0,131.31,131.25,128.38]
[1740598631858,1.0,131.35,131.28,20.0]
[1740598632023,1.0,131.37,131.28,20.0]
[1740598632024,1.5224,131.37,131.29,0.56864628]
[1740598632230,1.0,131.4,131.33,20.0]
[1740598632533,1.0,131.36,131.33,200.5222247]
[1740598632738,1.0,131.33,131.25,328.9022247]
[1740598632958,1.0,131.32,131.25,328.9022247]
[1740598633161,1.0,131.29,131.25,192.1022247]
[1740598633330,1.0,131.26,131.25,128.38]
[1740598633536,1.0,131.25,131.2,200.5222247]
[1740598633730,1.0,131.23,131.19,148.56]
[1740598633962,1.0,131.24,131.19,11.76]
[1740598634133,1.0,131.23,131.19,11.76]
[1740598634325,1.5236,131.27,131.19,11.76]
[1740598634326,1.0,131.2,131.19,11.76]
[1740598634532,2.0,131.22,131.18,128.38]
[1740598634759,2.0,131.24,131.18,128.38]
[1740598635060,1.0,131.23,131.18,128.38]
[1740598635262,1.0,131.21,131.18,128.38]
[1740598636261,1.0,131.23,131.18,128.38]
[1740598636561,1.0,131.24,131.18,265.18]
[1740598636747,2.0,131.24,131.18,265.18]
[1740598637057,0.063,131.25,131.21,20.0]
[1740598637274,0.063,131.25,131.22,11.72]
[1740598637473,1.0,131.24,131.21,200.5222247]
[1740598637780,1.063,131.25,131.21,200.5222247]
[1740598637781,1.0,131.23,131.21,200.5222247]
[1740598637964,1.0,131.22,131.18,128.38]
[1740598638149,2.0,131.22,131.18,128.38]
[1740598638351,1.063,131.25,131.18,336.5252247]
[1740598638553,1.0,131.2,131.18,128.38]
[1740598638750,1.0,131.22,131.18,128.38]
[1740598638968,1.0,131.23,131.18,128.38]
[1740598639148,0.063,131.25,131.18,328.9022247]
[1740598639482,2.0,131.23,131.18,192.1022247]
[1740598639671,2.5868,131.25,131.18,192.1022247]
[1740598639873,0.063,131.25,131.18,199.7251247]
[1740598640208,0.063,131.25,131.21,20.0]
[1740598640362,0.063,131.25,131.21,220.5222247]
[1740598640892,0.063,131.25,131.22,0.56864628]
[1740598641071,1.0,131.33,131.25,20.56864628]
[1740598641386,2.0,131.32,131.25,221.09087098]
[1740598641585,1.0,131.33,131.26,7.6184]
[1740598641750,1.0,131.35,131.27,0.56864628]
[1740598641956,2.0,131.34,131.28,11.7]
[1740598642173,1.0,131.33,131.28,11.7]
[1740598642353,1.0,131.35,131.28,212.2222247]
[1740598642555,2.5224,131.37,131.28,340.6222247]
[1740598642788,1.0,131.34,131.28,340.6222247]
[1740598643080,1.0,131.32,131.28,340.6222247]
[1740598643291,1.0,131.3,131.28,340.6222247]
[1740598643500,1.0,131.31,131.28,140.1]
[1740598643651,1.0,131.33,131.28,140.1]
[1740598643981,1.0,131.35,131.28,211.4394247]
[1740598644191,1.0,131.34,131.28,348.2394247]
[1740598644355,1.0,131.32,131.28,140.1]
[1740598644556,5.3288,131.36,131.28,128.4]
[1740598644557,1.0,131.29,131.28,128.4]
[1740598645680,1.0,131.32,131.28,128.4]
[1740598646013,1.0,131.35,131.28,336.5393247]
[1740598646196,1.0,131.33,131.28,328.9222247]
[1740598646506,1.0,131.36,131.31,20.0]
[1740598646712,1.0,131.36,131.31,232.1622247]
[1740598647011,2.0,131.35,131.31,232.1622247]
[1740598647317,1.0,131.33,131.31,75.3622247]
[1740598647482,3.5223,131.38,131.31,11.64]
[1740598647681,1.5224,131.37,131.31,239.7772247]
[1740598647903,1.0,131.36,131.31,239.7772247]
[1740598648102,1.0,131.35,131.31,239.7772247]
[1740598648800,1.0,131.33,131.31,75.3622247]
[1740598649989,1.0,131.34,131.31,75.3622247]
[1740598650202,1.0,131.33,131.31,75.3622247]
[1740598650575,2.0,131.35,131.31,75.3622247]
[1740598650782,1.0,131.35,131.31,75.3622247]
[1740598651019,1.0,131.32,131.31,11.64]
[1740598651313,1.0,131.28,131.22,200.5222247]
[1740598651485,2.0,131.28,131.22,200.5222247]
[1740598651812,1.0,131.28,131.22,208.1429247]
[1740598651989,3.5234,131.28,131.22,200.5222247]
[1740598652190,2.5234,131.28,131.22,71.3429247]
[1740598652408,2.5234,131.28,131.22,90.3948247]
[1740598652409,1.0,131.28,131.22,90.3948247]
[1740598652612,1.0,131.29,131.25,20.0]
[1740598652923,1.0,131.27,131.23,200.5222247]
[1740598653226,1.0,131.28,131.23,200.5222247]
[1740598653522,2.0,131.28,131.23,200.5222247]
[1740598653732,1.0,131.27,131.23,200.5222247]
[1740598653924,1.0,131.25,131.21,75.2222247]
[1740598654632,1.0,131.22,131.17,202.0234876]
[1740598654826,1.0,131.21,131.17,1.5012629]
[1740598655202,2.0,131.18,131.17,1.5012629]
[1740598655930,3.5246,131.18,131.17,1.5012629]
[1740598657234,1.5246,131.18,131.17,1.5012629]
[1740598657401,1.0,131.18,131.17,1.5012629]
[1740598657605,2.0,131.18,131.17,1.5012629]
[1740598657827,3.5246,131.18,131.17,1.5012629]
[1740598659841,2.5246,131.18,131.17,1.5012629]
[1740598660043,1.0,131.18,131.17,1.5012629]
[1740598660346,2.0,131.18,131.17,1.5012629]
[1740598661117,2.0,131.18,131.17,6.29e-05]
[1740598661642,2.0,131.17,131.16,6.29e-05]
[1740598661841,2.0,131.13,131.12,0.4]
[1740598662014,3.5252,131.13,131.12,0.4]
[1740598662822,7.6225,131.19,131.12,0.4]
[1740598662823,3.5251,131.14,131.12,0.4]
[1740598663024,2.0,131.13,131.12,0.80086207]
[1740598663622,1.0,131.13,131.12,0.80086207]
[1740598664425,2.0,131.13,131.12,0.80086207]
[1740598666120,3.5252,131.13,131.12,0.80086207]
[1740598666444,1.0,131.16,131.12,0.80086207]
[1740598666650,3.5244,131.2,131.12,8.42716207]
[1740598666821,1.0,131.2,131.13,0.56864628]
[1740598667011,2.0,131.21,131.16,20.0]
[1740598667217,1.0,131.2,131.16,20.0]
[1740598667418,1.0,131.19,131.13,201.09087098]
[1740598667612,2.0,131.22,131.16,20.0]
[1740598667832,2.0,131.23,131.16,231.7822247]
[1740598668036,1.0,131.23,131.17,7.6236]
[1740598668235,1.0,131.22,131.17,7.6236]
[1740598668546,1.0,131.23,131.17,7.6236]
[1740598668741,1.0,131.26,131.2,20.0]
[1740598668939,1.0,131.26,131.2,285.28]
[1740598669130,2.0,131.26,131.2,285.28]
[1740598669854,1.0,131.26,131.21,0.56864628]
[1740598670040,1.0,131.27,131.23,7.6202]
[1740598670353,0.063,131.28,131.23,144.4202]
[1740598670652,0.063,131.28,131.23,227.1929247]
[1740598670856,1.0,131.27,131.23,208.1424247]
[1740598671052,1.0,131.25,131.22,148.02]
[1740598671219,1.0,131.25,131.22,11.22]
[1740598671419,2.0,131.23,131.22,11.22]
[1740598672044,2.0,131.24,131.22,11.22]
[1740598672547,1.0,131.23,131.22,11.22]
[1740598672847,2.0,131.24,131.2,128.48]
[1740598673021,1.0,131.23,131.2,128.48]
[1740598673230,2.0,131.23,131.2,128.48]
[1740598673419,1.0,131.21,131.2,128.48]
[1740598673619,2.0,131.21,131.2,128.48]
[1740598674054,1.0,131.18,131.15,11.14]
[1740598674362,1.0,131.2,131.15,155.5646]
[1740598674529,2.0,131.24,131.18,20.0]
[1740598674731,2.0,131.23,131.18,156.8]
[1740598674944,1.0,131.23,131.18,156.8]
[1740598675149,2.063,131.25,131.19,0.56864628]
[1740598675548,1.063,131.25,131.19,137.36864628]
[1740598676143,0.063,131.25,131.23,20.56864628]
[1740598676380,0.063,131.25,131.23,296.90864628]
[1740598677141,0.063,131.25,131.23,296.34]
[1740598678150,0.063,131.25,131.24,22.88]
[1740598678335,0.063,131.25,131.24,0.56864628]
[1740598679335,0.063,131.28,131.24,201.09087098]
[1740598679769,0.063,131.28,131.24,223.97087098]
[1740598679969,0.063,131.28,131.26,0.56864628]
[1740598680660,0.063,131.28,131.26,8.18704628]
[1740598680847,0.063,131.28,131.26,231.58927098]
[1740598681073,1.0,131.36,131.3,0.56864628]
[1740598681257,1.0,131.36,131.31,10.94]
[1740598681458,1.0,131.36,131.32,0.56864628]
[1740598681658,2.063,131.37,131.31,10.94]
[1740598681860,1.0,131.35,131.31,10.94]
[1740598682065,2.0,131.35,131.31,10.94]
[1740598682243,1.0,131.35,131.31,10.94]
[1740598682447,1.0,131.36,131.31,10.94]
[1740598682741,1.063,131.37,131.32,0.56864628]
[1740598682943,0.063,131.37,131.34,0.56864628]
[1740598683244,0.063,131.37,131.34,200.5222247]
[1740598683952,0.063,131.37,131.35,0.56864628]
[1740598684152,0.063,131.37,131.34,200.5222247]
[1740598684669,1.0,131.34,131.33,128.38]
[1740598685075,2.063,131.37,131.33,192.1022247]
[1740598685245,1.0,131.36,131.33,192.1022247]
[1740598685563,0.063,131.37,131.33,328.9022247]
[1740598685770,1.0,131.36,131.33,328.9022247]
[1740598685947,0.063,131.37,131.34,0.56864628]
[1740598686476,0.063,131.37,131.34,201.09087098]
[1740598686664,0.063,131.37,131.34,208.70447098]
[1740598687668,0.063,131.37,131.34,201.09087098]
[1740598687872,0.063,131.37,131.34,208.70457098]
[1740598688171,1.063,131.37,131.34,200.5222247]
[1740598688472,0.063,131.37,131.34,200.5222247]
[1740598688841,0.063,131.37,131.34,208.1359247]
[1740598689097,0.063,131.37,131.35,0.56864628]
[1740598690379,1.063,131.39,131.35,0.56864628]
[1740598690380,0.063,131.39,131.38,28.18014628]
[1740598690559,0.063,131.46,131.42,20.56864628]
[1740598690763,0.063,131.46,131.45,20.56864628]
[1740598690965,0.063,131.46,131.45,231.95087098]
[1740598691160,0.063,131.46,131.45,74.5822247]
[1740598691357,0.063,131.46,131.43,63.7222247]
[1740598691358,2.0,131.44,131.43,63.7222247]
[1740598691563,1.5843,131.46,131.43,63.7222247]
[1740598691564,2.063,131.46,131.43,63.7222247]
[1740598691875,2.0,131.43,131.4,202.8622247]
[1740598692283,2.0,131.41,131.4,128.3]
[1740598692573,1.0,131.38,131.34,63.7222247]
[1740598692751,1.5219,131.41,131.34,208.1358247]
[1740598692752,1.0,131.4,131.34,208.1358247]
[1740598693077,1.0,131.4,131.34,200.5222247]
[1740598693378,1.0,131.42,131.36,0.42648471]
[1740598693600,1.0,131.41,131.37,22.88]
[1740598693748,1.0,131.39,131.36,200.5222247]
[1740598693949,2.0,131.39,131.36,63.7222247]
[1740598694150,2.0,131.36,131.34,202.5135064]
[1740598694401,2.5226,131.35,131.34,1.9912817]
[1740598694574,1.0,131.36,131.34,1.9912817]
[1740598694967,1.0,131.35,131.34,1.9912817]
[1740598695166,75.30540628,131.42,131.34,1.9912817]
[1740598695167,3.5224,131.37,131.34,1.9912817]
[1740598695383,1.0,131.37,131.34,202.5135064]
[1740598695681,1.0,131.35,131.34,202.5135064]
[1740598695885,2.0,131.35,131.34,1.9912817]
[1740598696111,22.0,131.35,131.34,8.17e-05]
[1740598696381,25.5226,131.35,131.34,8.17e-05]
[1740598696601,2.0,131.31,131.28,0.03]
[1740598696753,5.3292,131.35,131.28,0.03]
[1740598696754,1.0,131.33,131.28,200.5522247]
[1740598696950,2.0,131.38,131.32,20.0]
[1740598697150,1.0,131.39,131.34,0.28432314]
[1740598697373,1.0,131.4,131.34,223.68654784]
[1740598697611,1.0,131.42,131.36,0.56864628]
[1740598697778,2.5217,131.43,131.36,200.5222247]
[1740598697779,1.0,131.39,131.36,200.5222247]
[1740598698062,1.0,131.39,131.36,63.7222247]
[1740598698293,1.0,131.38,131.36,63.7222247]
[1740598698778,2.0,131.38,131.36,63.7222247]
[1740598698981,1.0,131.38,131.36,63.7222247]
[1740598699166,2.0,131.38,131.36,63.7222247]
[1740598699370,1.0,131.37,131.36,63.7222247]
[1740598699564,1.0,131.36,131.32,351.6822247]
[1740598699766,1.5223,131.38,131.32,351.6822247]
[1740598699767,1.0,131.34,131.32,128.28]
[1740598699959,1.0,131.33,131.32,128.28]
[1740598700282,2.0,131.33,131.32,128.28]
[1740598700592,2.0,131.3,131.28,0.03]
[1740598700837,1.0,131.29,131.28,0.03]
[1740598700962,2.0,131.29,131.28,0.03]
[1740598701480,1.0,131.29,131.28,0.03]
[1740598701669,2.0,131.29,131.28,0.03]
[1740598702081,1.0,131.29,131.28,0.03]
[1740598702266,2.0,131.29,131.28,0.03]
[1740598702477,3.5233,131.29,131.28,0.03]
[1740598702868,1.0,131.26,131.25,192.0222247]
[1740598703067,7.3316,131.29,131.25,128.3]
[1740598703263,1.0,131.27,131.25,192.0222247]
[1740598703485,1.0,131.26,131.25,192.0222247]
[1740598703796,7.3316,131.29,131.25,128.3]
[1740598703981,1.5232,131.3,131.26,0.56864628]
[1740598704287,1.0,131.32,131.28,0.56864628]
[1740598704590,2.0,131.36,131.28,242.34807098]
[1740598704791,1.0,131.35,131.31,20.0]
[1740598705105,1.0,131.34,131.31,220.5222247]
[1740598705384,1.0,131.33,131.31,200.5222247]
[1740598705576,1.0,131.35,131.31,200.5222247]
[1740598705972,2.0,131.36,131.31,200.5222247]
[1740598706787,2.0,131.35,131.31,200.5222247]
[1740598706984,2.0,131.36,131.31,200.5222247]
[1740598707214,2.0,131.36,131.32,0.56864628]
[1740598707884,1.0,131.38,131.35,0.56864628]
[1740598708085,1.0,131.38,131.35,211.2022247]
[1740598708263,1.0,131.39,131.35,211.2022247]
[1740598708467,2.063,131.4,131.35,211.2022247]
[1740598708692,1.063,131.4,131.35,339.5222247]
[1740598708890,2.0,131.39,131.35,339.5222247]
[1740598709087,1.0,131.39,131.36,0.56864628]
[1740598709329,0.063,131.4,131.36,201.09087098]
[1740598709789,0.063,131.4,131.36,223.97087098]
[1740598710795,0.063,131.4,131.39,20.0]
[1740598710995,0.063,131.4,131.39,156.8]
[1740598711192,1.0,131.45,131.42,20.0]
[1740598711391,1.0,131.45,131.42,10.66]
[1740598711572,1.063,131.46,131.43,0.56864628]
[1740598711769,0.063,131.46,131.45,20.56864628]
[1740598711974,0.063,131.46,131.45,349.39087098]
[1740598712490,0.063,131.46,131.45,328.8222247]
[1740598712905,0.063,131.46,131.45,192.0222247]
[1740598712906,1.063,131.46,131.45,192.0222247]
[1740598713536,0.063,131.46,131.45,192.59087098]
[1740598713875,2.063,131.46,131.45,192.0222247]
[1740598714088,1.063,131.46,131.45,192.0222247]
[1740598714277,2.063,131.46,131.45,128.3]
[1740598714500,1.53424517,131.46,131.45,128.3]
[1740598714988,3.05554517,131.46,131.45,128.3]
[1740598715784,1.0,131.35,131.34,200.5522247]
[1740598715980,1.0,131.36,131.34,200.5522247]
[1740598716187,1.53424517,131.37,131.34,200.5522247]
[1740598716385,1.53424517,131.39,131.37,20.0]